Workbook

Sheet 1 смена 5-11кл
A1: Согласовано | E1: Утверждаю
A2: И.о.начальника МКУ отдел образования Директор ООО " КДП Радуга"
A3: МР Учалинский район РБ Л.Л. Галиахметова
A4: Р.А. Зарипова
A5: Меню для образовательных учреждений города и района
A6: Учалинский район Республики Башкортостан
A7: на 76,36 рублей Ноябрь - 2024
A9: Категория: Дети участников СВО (5-11кл) 76,36 рубля
A10: Категория: многодетные малобеспеченные (5-11кл) 76,36 рубля (РБ)
A11: Первая неделя | J11: 2024-11-05
A12: Прием пищи | B12: Раздел | C12: № рец | D12: Блюдо | E12: Выход | F12: Цена | G12: ЭЦ | H12: Белки | I12: Жиры | J12: Углеводы
A13: Завтрак | C13: 365 | D13: Масло сливочное | E13: 10 | F13: 10 | G13: 7 | H13: 0
C14: 134 | D14: Каша "Дружба" молочная с маслом | E14: 208 | F14: 35 | G14: 274 | H14: 12 | I14: 15 | J14: 32.4
C15: 184 | D15: Чай с сахаром | E15: 200 | F15: 10 | G15: 52 | H15: 0 | I15: 0 | J15: 14
C16: 1.1 | D16: Хлеб пшеничный | E16: 50 | F16: 5 | G16: 130 | H16: 4 | I16: 0.05 | J16: 27.5
C17: 188 | D17: Булочка молочная | E17: 50 | F17: 15 | G17: 195 | H17: 3.3 | I17: 8 | J17: 36
D18: Итого: | F18: =F13+F14+F15+F16+F17 -> 75 | G18: =SUM(G14:G17) -> 651 | H18: =SUM(H14:H17) -> 19.3 | I18: =SUM(I14:I17) -> 23.05 | J18: =SUM(J14:J17) -> 109.9 | L18: 75
J19: 2024-11-06
A20: Прием пищи | B20: Раздел | C20: № рец | D20: Блюдо | E20: Выход | F20: Цена | G20: ЭЦ | H20: Белки | I20: Жиры | J20: Углеводы
A21: Завтрак | C21: 268 | D21: Котлеты рубленные из птицы с соусом | E21: 90 | F21: 45 | G21: 385 | H21: 19 | I21: 24.2 | J21: 21.6
C22: 146 | D22: Бобовые отварные | E22: 153 | F22: 25 | G22: 297 | H22: 19 | I22: 5 | J22: 32.4
C23: 196 | D23: Чай с лимоном и сахаром | E23: 207 | F23: 10 | G23: 54 | H23: 0 | I23: 0 | J23: 14
C24: 1.1 | D24: Хлеб пшеничный | E24: 50 | F24: 5 | G24: 130 | H24: 4 | I24: 0.05 | J24: 27.5
D25: Итого: | F25: =F21+F22+F23+F24 -> 85 | G25: =G21+G22+G23+G24 -> 866 | H25: =SUM(H21:H24) -> 42 | I25: =SUM(I21:I24) -> 29.25 | J25: =SUM(J21:J24) -> 95.5 | L25: 85
J27: 2024-11-07
A28: Прием пищи | B28: Раздел | C28: № рец | D28: Блюдо | E28: Выход | F28: Цена | G28: ЭЦ | H28: Белки | I28: Жиры | J28: Углеводы
A29: Завтрак | C29: 239 | D29: Запеканка творожно- рисовая с молоком сгущ. | E29: 200/20 | F29: 40 | G29: 300 | H29: 18.9 | I29: 13.3 | J29: 25.3
C30: 287 | D30: Кофейный напиток на молоке | E30: 200 | F30: 10 | G30: 101 | H30: 3.4 | I30: 15.1 | J30: 3.3
C31: 1.1 | D31: Хлеб пшеничный | E31: 50 | F31: 5 | G31: 130 | H31: 4 | I31: 0.05 | J31: 28
C32: 368 | D32: Фрукт /яблоко | E32: 200 | F32: 25 | G32: 88 | H32: 3 | I32: 1 | J32: 20
D33: Итого: | F33: =SUM(F29:F32) -> 80 | G33: =SUM(G29:G32) -> 619 | H33: =SUM(H29:H32) -> 29.3 | I33: =SUM(I29:I32) -> 29.45 | J33: =SUM(J29:J32) -> 76.6 | L33: 80
J35: 2024-11-08
A36: Прием пищи | B36: Раздел | C36: № рец | D36: Блюдо | E36: Выход | F36: Цена | G36: ЭЦ | H36: Белки | I36: Жиры | J36: Углеводы
A37: Завтрак | C37: 80 | D37: Рыба, тушеная в томате с овощами | E37: 105 | F37: 45 | G37: 115 | H37: 14 | I37: 5
C38: 138 | D38: Пюре картофельное с маслом слив | E38: 210 | F38: 20 | G38: 263 | H38: 4.1 | I38: 14 | J38: 30
C39: 65 | D39: Напиток из плодов шиповника | E39: 200 | F39: 10 | G39: 119 | H39: 0.7 | I39: 0.03 | J39: 29
C40: 1.1 | D40: Хлеб | E40: 50 | F40: 5 | G40: 130 | H40: 4 | I40: 0.05 | J40: 27.5
D41: Итого: | F41: =SUM(F37:F40) -> 80 | G41: =SUM(G37:G40) -> 627 | H41: =SUM(H37:H40) -> 22.8 | I41: =SUM(I37:I40) -> 19.08 | J41: =SUM(J37:J40) -> 86.5 | L41: 80
A42: Вторая неделя | J42: 2024-11-11
A43: Прием пищи | B43: Раздел | C43: № рец | D43: Блюдо | E43: Выход | F43: Цена | G43: ЭЦ | H43: Белки | I43: Жиры | J43: Углеводы
A44: Завтрак | C44: 366 | D44: Сыр порционно | E44: 15 | F44: 10 | G44: 36 | H44: 3 | I44: 3
C45: 42 | D45: Каша овсяная "Геркулес" вязкая с маслом слив | E45: 210 | F45: 25 | G45: 272 | H45: 9 | I45: 12 | J45: 38
C46: 184 | D46: Чай с сахаром | E46: 200 | F46: 10 | G46: 52 | H46: 0 | I46: 0 | J46: 14
C47: 1,1 | D47: Хлеб пшеничный | E47: 50 | F47: 5 | G47: 130 | H47: 4 | I47: 0.05 | J47: 27.5
C48: 20 | D48: Кондит изд. | E48: 50 | F48: 15 | G48: 195 | H48: 5 | I48: 5 | J48: 45
D49: Итого | F49: =SUM(F44:F48) -> 65 | G49: =SUM(G44:G48) -> 685 | H49: =SUM(H44:H48) -> 21 | I49: =SUM(I44:I48) -> 20.05 | J49: =SUM(J44:J48) -> 124.5 | L49: 65
J50: 2024-11-12
A51: Прием пищи | B51: Раздел | C51: № рец | D51: Блюдо | E51: Выход | F51: Цена | G51: ЭЦ | H51: Белки | I51: Жиры | J51: Углеводы
A52: Завтрак | C52: 91 | D52: Гуляш из отварной говядины | E52: 90 | F52: 45 | G52: 381 | H52: 26 | I52: 28 | J52: 7
C53: 212 | D53: Макаронные изделия отварные | E53: 205 | F53: 25 | G53: 270 | H53: 7.7 | I53: 4.5 | J53: 49
C54: 289 | D54: Какао с молоком | E54: 200 | F54: 10 | G54: 111 | H54: 4 | I54: 4 | J54: 16
C55: 1.1 | D55: Хлеб пшеничный | E55: 50 | F55: 5 | G55: 130 | H55: 4 | I55: 0.05 | J55: 27.5
D56: Итого: | F56: =SUM(F52:F55) -> 85 | G56: =SUM(G52:G55) -> 892 | H56: =SUM(H52:H55) -> 41.7 | I56: =SUM(I52:I55) -> 36.55 | J56: =SUM(J52:J55) -> 99.5 | L56: 85
J57: 2024-11-13
A58: Прием пищи | B58: Раздел | C58: № рец | D58: Блюдо | E58: Выход | F58: Цена | G58: ЭЦ | H58: Белки | I58: Жиры | J58: Углеводы
A59: Завтрак | C59: 100 | D59: Плов из мяса птицы | E59: 200 | F59: 40 | G59: 433 | H59: 18.6 | I59: 22.1 | J59: 39.3
C60: 276 | D60: Компот из смеси сухофруктов | E60: 200 | F60: 10 | G60: 110 | H60: 1 | I60: 0.05 | J60: 27.5
C61: 1.1 | D61: Хлеб пшеничный | E61: 50 | F61: 5 | G61: 130 | H61: 4 | I61: 0.05 | J61: 27.5
C62: 368 | D62: Фрукт /яблоко | E62: 200 | F62: 25 | G62: 88 | H62: 3 | I62: 1 | J62: 20
D63: Итого: | F63: =F59+F60+F61+F62 -> 80 | G63: =SUM(G59:G61) -> 673 | H63: =SUM(H59:H61) -> 23.6 | I63: =SUM(I59:I61) -> 22.2 | J63: =SUM(J59:J61) -> 94.3 | L63: 80
J64: 2024-11-14
A65: Прием пищи | B65: Раздел | C65: № рец | D65: Блюдо | E65: Выход | F65: Цена | G65: ЭЦ | H65: Белки | I65: Жиры | J65: Углеводы
A66: Завтрак | C66: 365 | D66: Масло сливочное | E66: 10 | F66: 10 | G66: 66 | H66: 0 | I66: 7 | J66: 0
C67: 134 | D67: Каша "Дружба" молочная с маслом | E67: 208 | F67: 25 | G67: 274 | H67: 12 | I67: 15 | J67: 32.4
C68: 184 | D68: Чай с сахаром | E68: 200 | F68: 10 | G68: 52 | H68: 0 | I68: 0 | J68: 14
C69: 1.1 | D69: Хлеб пшеничный | E69: 50 | F69: 5 | G69: 130 | H69: 4 | I69: 0.05 | J69: 27.5
C70: 188 | D70: Булочка молочная | E70: 50 | F70: 15 | G70: 195 | H70: 3.3 | I70: 8 | J70: 36
D71: Итого: | F71: =F66+F67+F68+F69+F70 -> 65 | G71: =SUM(G67:G70) -> 651 | H71: =SUM(H67:H70) -> 19.3 | I71: =SUM(I67:I70) -> 23.05 | J71: =SUM(J67:J70) -> 109.9 | L71: 65
J72: 2024-11-15
A73: Прием пищи | B73: Раздел | C73: № рец | D73: Блюдо | E73: Выход | F73: Цена | G73: ЭЦ | H73: Белки | I73: Жиры | J73: Углеводы
A74: Завтрак | C74: 98 | D74: Котлета из говядины | E74: 60 | F74: 45 | G74: 178 | H74: 10 | I74: 11 | J74: 10
C75: 138 | D75: Пюре картофельное с маслом слив | E75: 210 | F75: 20 | G75: 263 | H75: 4.1 | I75: 14 | J75: 30
C76: 15.3 | D76: Витаминиз.кисель "Витоша" | E76: 200 | F76: 15 | G76: 95 | H76: 0 | I76: 0 | J76: 24
C77: 1.1 | D77: Хлеб пшеничный | E77: 50 | F77: 5 | G77: 130 | H77: 4 | I77: 0.05 | J77: 27.5
D78: Итого: | F78: =SUM(F75:F77)+F74 -> 85 | G78: =SUM(G74:G77) -> 666 | H78: =SUM(H74:H77) -> 18.1 | I78: =SUM(I74:I77) -> 25.05 | J78: =SUM(J74:J77) -> 91.5 | L78: 85
A79: Третья неделя | J79: 2024-11-18
A80: Прием пищи | B80: Раздел | C80: № рец | D80: Блюдо | E80: Выход | F80: Цена | G80: ЭЦ | H80: Белки | I80: Жиры | J80: Углеводы
A81: Завтрак | C81: 366 | D81: Сыр порционно | E81: 15 | F81: 10 | G81: 36 | H81: 3 | I81: 3
C82: 182 | D82: Каша пшеная молоч. жидкая | E82: 208 | F82: 25 | G82: 264 | H82: 7 | I82: 10.3 | J82: 34.9
C83: 287 | D83: Кофейный напиток на молоке | E83: 200 | F83: 10 | G83: 101 | H83: 3.4 | I83: 15.1 | J83: 3.3
C84: 1.1 | D84: Хлеб пшеничный | E84: 50 | F84: 5 | G84: 130 | H84: 4 | I84: 0.05 | J84: 27.5
C85: 188 | D85: Булочка молочная | E85: 50 | F85: 15 | G85: 195 | H85: 4.7 | I85: 5 | J85: 36
D86: Итого: | F86: =F81+F82+F83+F84+F85 -> 65 | G86: =SUM(G82:G85) -> 690 | H86: =SUM(H82:H85) -> 19.1 | I86: =SUM(I82:I85) -> 30.45 | J86: =SUM(J82:J85) -> 101.7 | L86: 65
J87: 2024-11-19
A88: Прием пищи | B88: Раздел | C88: № рец | D88: Блюдо | E88: Выход | F88: Цена | G88: ЭЦ | H88: Белки | I88: Жиры | J88: Углеводы
A89: Завтрак | C89: 97 | D89: Жаркое по-домашнему | E89: 250 | F89: 60 | G89: 407 | H89: 23.5 | I89: 24.6 | J89: 23
C90: 196 | D90: Кисель плодово/ягодный | E90: 200 | F90: 10 | G90: 66 | H90: 0 | I90: 0 | J90: 10
C91: 1.1 | D91: Хлеб пшеничный | E91: 50 | F91: 5 | G91: 130 | H91: 4 | I91: 0.05 | J91: 27.5
D92: Итого: | F92: =SUM(F89:F91) -> 75 | G92: =SUM(G89:G91) -> 603 | H92: =SUM(H89:H91) -> 27.5 | I92: =SUM(I89:I91) -> 24.65 | J92: =SUM(J89:J91) -> 60.5 | L92: 75
J93: 2024-11-20
A94: Прием пищи | B94: Раздел | C94: № рец | D94: Блюдо | E94: Выход | F94: Цена | G94: ЭЦ | H94: Белки | I94: Жиры | J94: Углеводы
A95: Завтрак | C95: 239 | D95: Запеканка творожно- рисовая с молоком сгущ. | E95: 200/20 | F95: 40 | G95: 300 | H95: 18.9 | I95: 13.3 | J95: 25.3
C96: 287 | D96: Кофейный напиток на молоке | E96: 200 | F96: 10 | G96: 101 | H96: 3.4 | I96: 15.1 | J96: 3.3
C97: 1.1 | D97: Хлеб пшеничный | E97: 50 | F97: 5 | G97: 130 | H97: 4 | I97: 0.05 | J97: 27.5
C98: 188 | D98: Булочка молочная | E98: 50 | F98: 15 | G98: 195 | H98: 3.3 | I98: 8 | J98: 36
D99: Итого: | F99: =SUM(F95:F98) -> 70 | G99: =SUM(G95:G98) -> 726 | H99: =SUM(H95:H98) -> 29.6 | I99: =SUM(I95:I98) -> 36.45 | J99: =SUM(J95:J98) -> 92.1 | L99: 70
J101: 2024-11-21
A102: Прием пищи | B102: Раздел | C102: № рец | D102: Блюдо | E102: Выход | F102: Цена | G102: ЭЦ | H102: Белки | I102: Жиры | J102: Углеводы
A103: Завтрак | C103: 91 | D103: Гуляш из отварной говядины | E103: 90 | F103: 45 | G103: 381 | H103: 26 | I103: 28 | J103: 7
C104: 123 | D104: Каша гречневая рассыпчатая с маслом | E104: 210 | F104: 20 | G104: 296 | H104: 11.2 | I104: 7 | J104: 46
C105: 276 | D105: Компот из смеси сухофруктов | E105: 200 | F105: 10 | G105: 110 | H105: 1 | I105: 0.05 | J105: 27.5
C106: 1.1 | D106: Хлеб | E106: 50 | F106: 5 | G106: 130 | H106: 4 | I106: 0.05 | J106: 27.5
D107: Итого: | F107: =SUM(F103:F106) -> 80 | G107: =SUM(G103:G106) -> 917 | H107: =SUM(H103:H106) -> 42.2 | I107: =SUM(I103:I106) -> 35.1 | J107: =SUM(J103:J106) -> 108 | L107: 75
J108: 2024-11-22
A109: Прием пищи | B109: Раздел | C109: № рец | D109: Блюдо | E109: Выход | F109: Цена | G109: ЭЦ | H109: Белки | I109: Жиры | J109: Углеводы
A110: Завтрак | C110: 365 | D110: Масло сливочное | E110: 10 | F110: 10 | G110: 66 | H110: 0 | I110: 7 | J110: 0
C111: 42 | D111: Каша рисовая молочная вязкая | E111: 205 | F111: 25 | G111: 261 | H111: 6.06 | I111: 14 | J111: 42.86
C112: 289 | D112: Какао с молоком | E112: 200 | F112: 10 | G112: 111 | H112: 4 | I112: 4 | J112: 16
C113: 1.1 | D113: Хлеб пшеничный | E113: 50 | F113: 5 | G113: 130 | H113: 4 | I113: 0.05 | J113: 27.5
C114: 368 | D114: Фрукт /груша | E114: 200 | F114: 30 | G114: 100 | H114: 3 | I114: 1 | J114: 20
D115: Итого: | F115: 80 | G115: =SUM(G111:G114) -> 602 | H115: =SUM(H111:H114) -> 17.06 | I115: =SUM(I111:I114) -> 19.05 | J115: =SUM(J111:J114) -> 106.36 | L115: 80
A116: Четвертая неделя | J116: 2024-11-25
A117: Прием пищи | B117: Раздел | C117: № рец | D117: Блюдо | E117: Выход | F117: Цена | G117: ЭЦ | H117: Белки | I117: Жиры | J117: Углеводы
A118: Завтрак | C118: 366 | D118: Сыр порционно | E118: 15 | F118: 10 | G118: 36 | H118: 3 | I118: 3
C119: 42 | D119: Каша овсяная "Геркулес" вязкая с маслом слив | E119: 210 | F119: 25 | G119: 272 | H119: 9 | I119: 16 | J119: 38
C120: 196 | D120: Чай с лимоном и сахаром | E120: 207 | F120: 10 | G120: 54 | H120: 0 | I120: 0 | J120: 14
C121: 1,1 | D121: Хлеб пшеничный | E121: 50 | F121: 5 | G121: 130 | H121: 4 | I121: 0.05 | J121: 27.5
C122: 20 | D122: Кондит изд. | E122: 50 | F122: 15 | G122: 208 | H122: 5 | I122: 2.5 | J122: 45
D123: Итого: | F123: =SUM(F118:F122) -> 65 | G123: =SUM(G118:G122) -> 700 | H123: =SUM(H118:H122) -> 21 | I123: =SUM(I118:I122) -> 21.55 | J123: =SUM(J118:J122) -> 124.5 | L123: 65
J124: 2024-11-26
A125: Прием пищи | B125: Раздел | C125: № рец | D125: Блюдо | E125: Выход | F125: Цена | G125: ЭЦ | H125: Белки | I125: Жиры | J125: Углеводы
A126: Завтрак | C126: 12.1 | D126: Филе грудки с овощами | E126: 90 | F126: 40 | G126: 191 | H126: 16 | I126: 14 | J126: 1
C127: 123 | D127: Каша гречневая рассыпчатая с маслом | E127: 210 | F127: 25 | G127: 296 | H127: 11.2 | I127: 7 | J127: 46
C128: 276 | D128: Компот из смеси сухофруктов | E128: 200 | F128: 10 | G128: 110 | H128: 1 | I128: 0.05 | J128: 27.5
C129: 1.1 | D129: Хлеб пшеничный | E129: 50 | F129: 5 | G129: 130 | H129: 4 | I129: 0.05 | J129: 27.5
D130: Итого: | F130: =SUM(F126:F129) -> 80 | G130: =SUM(G126:G129) -> 727 | H130: =SUM(H126:H129) -> 32.2 | I130: =SUM(I126:I129) -> 21.1 | J130: =SUM(J126:J129) -> 102 | L130: 80
J132: 2024-11-27
A133: Прием пищи | B133: Раздел | C133: № рец | D133: Блюдо | E133: Выход | F133: Цена | G133: ЭЦ | H133: Белки | I133: Жиры | J133: Углеводы
A134: Завтрак | C134: 98 | D134: Котлета из говядины | E134: 90 | F134: 50 | G134: 178 | H134: 10 | I134: 11 | J134: 10
C135: 138 | D135: Пюре картофельное с маслом слив | E135: 210 | F135: 20 | G135: 263 | H135: 4.1 | I135: 14 | J135: 30
C136: 65 | D136: Напиток из плодов шиповника | E136: 200 | F136: 10 | G136: 119 | H136: 0.7 | I136: 0.03 | J136: 29
C137: 1.1 | D137: Хлеб пшеничный | E137: 50 | F137: 5 | G137: 130 | H137: 4 | I137: 0.05 | J137: 27.5
D138: Итого: | F138: =SUM(F134:F137) -> 85 | G138: =SUM(G134:G137) -> 690 | H138: =SUM(H134:H137) -> 18.8 | I138: =SUM(I134:I137) -> 25.08 | J138: =SUM(J134:J137) -> 96.5 | L138: 85
J139: 2024-11-28
A140: Прием пищи | B140: Раздел | C140: № рец | D140: Блюдо | E140: Выход | F140: Цена | G140: ЭЦ | H140: Белки | I140: Жиры | J140: Углеводы
A141: Завтрак | C141: 80 | D141: Фишболы рыбные | E141: 60 | F141: 35 | G141: 134 | H141: 10 | I141: 7 | J141: 8.3
C142: 212 | D142: Макаронные изделия отварные | E142: 205 | F142: 20 | G142: 270 | H142: 6 | I142: 12 | J142: 49
C143: 15,4 | D143: Витаминизированный напиток " Витошка" | E143: 207 | F143: 10 | G143: 75 | H143: 0 | I143: 0 | J143: 19
C144: 1.1 | D144: Хлеб пшеничный | E144: 50 | F144: 5 | G144: 130 | H144: 4 | I144: 0.05 | J144: 27.5
D145: Итого: | F145: =SUM(F141:F144) -> 70 | G145: =SUM(G141:G144) -> 609 | H145: 25 | I145: =SUM(I141:I144) -> 19.05 | J145: =SUM(J141:J144) -> 103.8 | L145: 70
J146: 2024-11-29
A147: Прием пищи | B147: Раздел | C147: № рец | D147: Блюдо | E147: Выход | F147: Цена | G147: ЭЦ | H147: Белки | I147: Жиры | J147: Углеводы
A148: Завтрак | C148: 365 | D148: Масло сливочное | E148: 10 | F148: 10 | G148: 66 | H148: 0 | I148: 7 | J148: 0
C149: 42 | D149: Каша рисовая молочная вязкая | E149: 205 | F149: 25 | G149: 262 | H149: 6 | I149: 8 | J149: 43
C150: 287 | D150: Кофейный напиток на молоке | E150: 200 | F150: 10 | G150: 101 | H150: 3.4 | I150: 15.1 | J150: 3.3
C151: 1.1 | D151: Хлеб пшеничный | E151: 50 | F151: 5 | G151: 130 | H151: 4 | I151: 0.05 | J151: 27.5
C152: 20 | D152: Кондит изд.(печенье) | E152: 50 | F152: 15 | G152: 204 | H152: 5 | I152: 2.5 | J152: 45
D153: Итого: | F153: =SUM(F148:F152) -> 65 | G153: =SUM(G148:G152) -> 763 | H153: =SUM(H148:H152) -> 18.4 | I153: =SUM(I148:I152) -> 32.65 | J153: =SUM(J148:J152) -> 118.8 | L153: 65
D156: Итого:1450,84/76,36

Sheet Лист1
